bitfinex-derivatives/quotes_BTCF0:USTF0_20250905
["timestamp","ask_amount","ask_price","bid_price","bid_amount"]
[1757055223531,0.10358,111800.0,111790.0,1.8289471]
[1757055225732,0.10358,111800.0,111790.0,1.4900306]
[1757055225924,0.10358,111800.0,111790.0,1.8000306]
[1757055226825,0.10358,111800.0,111790.0,1.8894671]
[1757055227630,0.10358,111800.0,111790.0,1.77728572]
[1757055227934,0.10358,111800.0,111790.0,1.88955913]
[1757055228933,0.07953,111800.0,111790.0,1.77728572]
[1757055233538,0.07953,111800.0,111790.0,1.88955913]
[1757055234449,0.07953,111800.0,111790.0,1.77728572]
[1757055234847,0.07953,111800.0,111790.0,1.88955913]
[1757055238551,0.15371814,111810.0,111790.0,1.88955913]
[1757055238746,0.25733814,111810.0,111800.0,0.38296]
[1757055239958,0.27110814,111810.0,111800.0,0.38296]
[1757055240256,0.27110814,111810.0,111800.0,0.38743]
[1757055243356,0.27110814,111810.0,111800.0,0.49970341]
[1757055243959,0.03702,111810.0,111800.0,0.49970341]
[1757055244254,0.25833814,111810.0,111800.0,0.51248341]
[1757055244451,0.25833814,111810.0,111800.0,0.40021]
[1757055244652,0.27110814,111810.0,111800.0,0.40021]
[1757055244860,0.27110814,111810.0,111800.0,0.49970341]
[1757055245359,0.27110814,111810.0,111800.0,1.23203]
[1757055245558,0.30028885,111810.0,111800.0,1.23203]
[1757055245751,0.30028885,111810.0,111800.0,1.34430341]
[1757055249351,0.28751885,111810.0,111800.0,1.44651181]
[1757055249657,0.28751885,111810.0,111800.0,1.3342384]
[1757055250056,0.28751885,111810.0,111800.0,1.50807885]
[1757055250962,0.02425,111810.0,111800.0,1.24481]
[1757055251162,0.28751885,111810.0,111800.0,1.24481]
[1757055251568,0.02425,111810.0,111800.0,1.59750725]
[1757055251863,0.28751885,111810.0,111800.0,1.93750725]
[1757055252162,0.28751885,111810.0,111800.0,1.84807885]
[1757055252362,0.28751885,111810.0,111800.0,1.93750735]
[1757055252868,0.28751885,111810.0,111800.0,1.50807885]
[1757055253051,0.28751885,111810.0,111800.0,1.84807885]
[1757055253361,0.02425,111810.0,111800.0,1.93750725]
[1757055253565,0.28751885,111810.0,111800.0,1.93750725]
[1757055254263,0.28751885,111810.0,111800.0,0.66347885]
[1757055254565,0.28751885,111810.0,111800.0,1.50747885]
[1757055254959,0.28751885,111810.0,111800.0,1.59690725]
[1757055255162,0.28751885,111810.0,111800.0,1.50747885]
[1757055255467,0.28751885,111810.0,111800.0,0.66347885]
[1757055255765,0.28751885,111810.0,111800.0,1.50715885]
[1757055256360,0.28874964,111810.0,111800.0,1.50715885]
[1757055257266,0.28874964,111810.0,111800.0,1.59658725]
[1757055258164,0.28874964,111810.0,111800.0,1.70886066]
[1757055258966,0.28874964,111810.0,111800.0,1.3333184]
[1757055259168,0.28874964,111810.0,111800.0,1.59658725]
[1757055259870,0.28874964,111810.0,111800.0,1.50715885]
[1757055260663,0.28874964,111810.0,111800.0,0.66347885]
[1757055260864,0.28874964,111810.0,111800.0,1.24337]
[1757055261570,0.28874964,111810.0,111800.0,1.3327984]
[1757055262271,0.00223079,111810.0,111800.0,1.93606725]
[1757055263673,0.26549964,111810.0,111800.0,1.93606725]
[1757055264375,0.00223079,111810.0,111800.0,1.93606725]
[1757055264868,0.00223079,111810.0,111800.0,2.18606725]
[1757055265075,0.00223079,111810.0,111800.0,2.29834066]
[1757055265375,0.00223079,111810.0,111800.0,2.18606725]
[1757055265571,0.00223079,111810.0,111800.0,2.18486725]
[1757055266174,0.00123079,111810.0,111800.0,2.18486725]
[1757055266374,0.00123079,111810.0,111800.0,1.34290725]
[1757055266675,0.00123079,111810.0,111800.0,2.18470725]
[1757055267178,0.00123079,111810.0,111800.0,1.34290725]
[1757055267376,0.00123079,111810.0,111800.0,2.18414725]
[1757055267878,0.00123079,111810.0,111800.0,2.29628119]
[1757055272981,0.28689964,111810.0,111800.0,0.67234394]
[1757055273283,0.28689964,111810.0,111800.0,1.49194394]
[1757055273582,0.28689964,111810.0,111800.0,1.95521279]
[1757055274580,0.28689964,111810.0,111800.0,2.04464129]
[1757055274786,0.28689964,111810.0,111800.0,1.95521279]
[1757055275878,0.28689964,111810.0,111800.0,1.11561279]
[1757055276085,0.29971964,111810.0,111800.0,1.70114394]
[1757055277787,0.00123079,111810.0,111800.0,1.96441279]
[1757055278086,0.00123079,111810.0,111800.0,2.0537809]
[1757055280090,0.27734052,111820.0,111810.0,0.12249882]
[1757055280284,0.27724052,111820.0,111810.0,1.08656767]
[1757055280496,0.27724052,111820.0,111810.0,1.19864132]
[1757055280891,0.01397167,111820.0,111810.0,1.19864132]
[1757055281191,0.01397167,111820.0,111810.0,1.20311132]
[1757055281890,0.27724052,111820.0,111810.0,1.20311132]
[1757055282390,0.27824052,111820.0,111810.0,1.20311132]
[1757055283191,0.01497167,111820.0,111810.0,1.20311132]
[1757055283793,0.01497167,111820.0,111810.0,1.09103767]
[1757055285887,0.27824052,111820.0,111810.0,1.09103767]
[1757055286394,0.01497167,111820.0,111810.0,1.00407885]
[1757055286594,0.29929052,111820.0,111810.0,0.40081]
[1757055286790,0.29929052,111820.0,111810.0,1.57709]
[1757055286991,0.03602167,111820.0,111810.0,1.57709]
[1757055287185,0.29929052,111820.0,111810.0,1.57709]
[1757055287890,0.29929052,111820.0,111810.0,1.23701]
[1757055288092,0.03602167,111820.0,111810.0,1.58701]
[1757055288298,0.29929052,111820.0,111810.0,1.58701]
[1757055290505,0.29929052,111820.0,111810.0,1.69908365]
[1757055291503,0.03602167,111820.0,111810.0,1.69908365]
[1757055291701,0.30052109,111820.0,111810.0,1.69908365]
[1757055292201,0.31415109,111820.0,111810.0,1.69908365]
[1757055293002,0.31415109,111820.0,111810.0,1.69776365]
[1757055293996,0.30052109,111820.0,111810.0,1.69776365]
[1757055294798,0.31415109,111820.0,111810.0,1.33501365]
[1757055294991,0.31415109,111820.0,111810.0,1.69501365]
[1757055301110,0.31415109,111820.0,111810.0,0.51291365]
[1757055301313,0.31415109,111820.0,111810.0,1.70599365]
[1757055301504,0.30052109,111820.0,111810.0,0.51291365]
[1757055301704,0.30052109,111820.0,111810.0,1.71595365]
[1757055302709,0.30052109,111820.0,111810.0,1.60388]
[1757055303398,0.30052109,111820.0,111810.0,0.40084]
[1757055303605,0.30052109,111820.0,111810.0,1.5438]
[1757055304613,0.30052109,111820.0,111810.0,1.6332204]
[1757055304812,0.27947109,111820.0,111810.0,1.89648925]
[1757055305412,0.28070166,111820.0,111810.0,1.89648925]
[1757055305712,0.28070166,111820.0,111810.0,1.6332204]
[1757055305713,0.01743281,111820.0,111810.0,1.6332204]
[1757055310114,0.01743281,111820.0,111810.0,1.5438]
[1757055311017,0.03848281,111820.0,111810.0,1.23204]
[1757055311218,0.03848281,111820.0,111810.0,1.58204]
[1757055311518,0.05211281,111820.0,111810.0,1.58204]
[1757055312518,0.28605882,111820.0,111810.0,1.58204]
[1757055313915,0.28605882,111820.0,111810.0,1.6943598]
[1757055314314,0.03848281,111820.0,111810.0,1.6943598]
[1757055314614,0.27242882,111820.0,111810.0,1.6943598]
[1757055315005,0.03848281,111820.0,111810.0,1.7837802]
[1757055315213,0.01743281,111820.0,111810.0,1.7837802]
[1757055315413,0.01743281,111820.0,111810.0,0.8631598]
[1757055315610,0.04060281,111820.0,111810.0,1.6535598]
[1757055316420,0.04060281,111820.0,111810.0,1.7429802]
[1757055317420,0.04183338,111820.0,111810.0,1.7429802]
[1757055320220,0.04183338,111820.0,111810.0,1.6535598]
[1757055320421,0.04183338,111820.0,111810.0,0.8231598]
[1757055320716,0.04183338,111820.0,111810.0,1.7127198]
[1757055320914,0.04183338,111820.0,111810.0,0.8831598]
[1757055321121,0.04183338,111820.0,111810.0,0.5131598]
[1757055321316,0.04183338,111820.0,111810.0,1.7418202]
[1757055322113,0.04183338,111820.0,111810.0,1.6295004]
[1757055322314,0.04183338,111820.0,111810.0,1.54008]
[1757055322515,0.01866338,111820.0,111810.0,2.11344641]
[1757055322819,0.0001,111830.0,111820.0,0.1109924]
[1757055323116,0.0001,111840.0,111830.0,0.1219044]
[1757055323320,0.02913956,111850.0,111830.0,1.6518244]
[1757055323520,0.05230956,111850.0,111840.0,0.39516]
[1757055323710,0.05220956,111850.0,111840.0,0.71516]
[1757055323915,0.28615557,111850.0,111840.0,0.71516]
[1757055324316,0.01621956,111850.0,111840.0,1.03850241]
[1757055324522,0.01621956,111850.0,111840.0,1.04297241]
[1757055324823,0.01621956,111850.0,111840.0,1.06789073]
[1757055325120,0.01821956,111850.0,111840.0,1.06789073]
[1757055325422,0.0001,111860.0,111850.0,0.02158]
[1757055325627,0.02317,111860.0,111850.0,1.24102]
[1757055325926,0.03647,111860.0,111850.0,1.56102]
[1757055326121,0.03647,111860.0,111850.0,1.6504084]
[1757055326320,0.24734601,111870.0,111850.0,1.6504084]
[1757055326518,0.27051601,111870.0,111860.0,0.02158]
[1757055326724,0.27041601,111870.0,111860.0,0.38238]
[1757055326926,0.52041601,111870.0,111860.0,0.02158]
[1757055327131,0.88121601,111870.0,111860.0,0.02158]
[1757055328224,0.88244614,111870.0,111860.0,0.02158]
[1757055328526,0.88244614,111870.0,111860.0,0.09341972]
[1757055328720,0.88244614,111870.0,111860.0,0.02158]
[1757055329418,0.52164614,111870.0,111860.0,0.02158]
[1757055329614,0.88244614,111870.0,111860.0,0.02158]
[1757055330232,0.52164614,111870.0,111860.0,0.02158]
[1757055331026,0.01555785,111880.0,111870.0,0.0990625]
[1757055331230,0.01545785,111880.0,111870.0,1.88302851]
[1757055331823,0.01545785,111880.0,111870.0,1.95302448]
[1757055332225,0.01545785,111880.0,111870.0,1.95402448]
[1757055333219,0.01545785,111880.0,111870.0,1.63074597]
[1757055333424,0.01545785,111880.0,111870.0,2.20406448]
[1757055334227,0.01545785,111880.0,111870.0,1.97011847]
[1757055334825,0.01545785,111880.0,111870.0,1.88074597]
[1757055335226,0.01545785,111880.0,111870.0,2.11469198]
[1757055336932,0.01545785,111880.0,111870.0,1.88074597]
[1757055338040,0.01545785,111880.0,111870.0,1.97011877]
[1757055340539,0.01668776,111880.0,111870.0,1.97011877]
[1757055342239,0.01668776,111880.0,111870.0,1.97457877]
[1757055345339,0.01668776,111880.0,111870.0,2.20852478]
[1757055345548,0.02973776,111880.0,111870.0,0.79783597]
[1757055345844,0.02973776,111880.0,111870.0,1.71264877]
[1757055347146,0.01668776,111880.0,111870.0,1.71264877]
[1757055348544,0.30208776,111880.0,111870.0,1.62299597]
[1757055348843,0.53603377,111880.0,111870.0,1.62271597]
[1757055349352,0.30208776,111880.0,111870.0,1.62271597]
[1757055349848,0.53603377,111880.0,111870.0,1.37251597]
[1757055350048,0.53603377,111880.0,111870.0,0.18703597]
[1757055350344,0.89683377,111880.0,111870.0,0.16545597]
[1757055350554,0.89683377,111880.0,111870.0,0.09546]
[1757055351448,1.13077978,111880.0,111870.0,0.00546]
[1757055352046,0.89683377,111880.0,111870.0,0.00546]
[1757055352450,1.13077978,111880.0,111870.0,0.00546]
[1757055353849,1.15553965,111880.0,111870.0,0.00546]
[1757055354439,1.15676956,111880.0,111870.0,0.00546]
[1757055354848,0.0354,111870.0,111860.0,0.0001]
[1757055355048,0.0354,111860.0,111850.0,0.0001]
[1757055355246,0.0354,111850.0,111840.0,1.03687793]
[1757055355445,0.27180583,111850.0,111840.0,1.2686]
[1757055355844,0.27180583,111850.0,111840.0,0.6108]
[1757055356045,0.27180583,111850.0,111840.0,1.45671]
[1757055356753,0.27180583,111850.0,111840.0,1.46071]
[1757055357248,0.00245982,111850.0,111840.0,2.04138281]
[1757055357748,0.0001,111860.0,111850.0,0.1166788]
[1757055358061,0.24709601,111870.0,111850.0,0.54753719]
[1757055358354,0.26944601,111870.0,111860.0,1.1846]
[1757055358558,0.26934601,111870.0,111860.0,1.1846]
[1757055359252,0.88014601,111870.0,111860.0,0.02183]
[1757055359956,0.0354,111860.0,111850.0,0.09198839]
[1757055360157,0.26934601,111860.0,111850.0,0.09188839]
[1757055360757,0.63014601,111860.0,111850.0,0.02183]
[1757055362557,0.63014601,111860.0,111850.0,0.02383]
[1757055362961,0.26934601,111860.0,111850.0,0.02383]
[1757055365566,0.29845614,111860.0,111850.0,0.02383]
[1757055366463,0.01315,111870.0,111850.0,0.99253494]
[1757055366663,0.01315,111870.0,111850.0,0.4795788]
[1757055366865,0.27620614,111870.0,111850.0,0.4795788]
[1757055367163,0.29855614,111870.0,111860.0,0.84479]
[1757055367358,0.29845614,111870.0,111860.0,0.84479]
[1757055369456,0.29845614,111870.0,111860.0,0.84579]
[1757055370354,0.29845614,111870.0,111860.0,1.20659]
[1757055370554,0.29845614,111870.0,111860.0,1.46964614]
[1757055370750,0.29845614,111870.0,111860.0,1.20659]
[1757055371258,0.0354,111870.0,111860.0,1.20659]
[1757055371652,0.29845614,111870.0,111860.0,1.20659]
[1757055372359,0.29845614,111870.0,111860.0,1.46964614]
[1757055372559,0.29166399,111880.0,111860.0,1.56871384]
[1757055372764,0.31401399,111880.0,111870.0,0.38263]
[1757055372967,0.31391399,111880.0,111870.0,0.38263]
[1757055377571,0.31391399,111880.0,111870.0,0.4720032]
[1757055378265,0.31391399,111880.0,111870.0,0.38263]
[1757055380468,0.31391399,111880.0,111870.0,0.64568614]
[1757055380768,0.30086399,111880.0,111870.0,0.4720032]
[1757055380966,0.30086399,111880.0,111870.0,0.38263]
[1757055381364,0.30086399,111880.0,111870.0,0.64568614]
[1757055381565,0.30086399,111880.0,111870.0,0.73505934]
[1757055382257,0.27851399,111880.0,111870.0,0.73505934]
[1757055382457,0.27851399,111880.0,111870.0,0.64568614]
[1757055383471,0.01545785,111880.0,111870.0,0.98505934]
[1757055383772,0.01545785,111880.0,111870.0,1.32505934]
[1757055384071,0.01545785,111880.0,111870.0,0.98505934]
[1757055385068,0.01545785,111880.0,111870.0,1.68750095]
[1757055385267,0.01545785,111880.0,111870.0,1.42444481]
[1757055385976,0.01545785,111880.0,111870.0,1.42544481]
[1757055386275,0.01545785,111880.0,111870.0,1.16238867]
[1757055386577,0.01545785,111880.0,111870.0,1.42544481]
[1757055387869,0.01545785,111880.0,111870.0,2.23772481]
[1757055388975,0.01545785,111880.0,111870.0,2.32004461]
[1757055389275,0.01545785,111880.0,111870.0,2.20772481]
[1757055389774,0.01545785,111880.0,111870.0,2.20768481]
[1757055390567,0.01545785,111880.0,111870.0,2.32301973]
[1757055395377,0.01545785,111880.0,111870.0,2.58607587]
[1757055395583,0.04783287,111900.0,111890.0,0.02158]
[1757055395878,0.06114287,111900.0,111890.0,0.38238]
[1757055396078,0.06114287,111900.0,111890.0,1.20454]
[1757055397878,0.06114287,111900.0,111890.0,1.46759614]
[1757055398076,0.06114287,111900.0,111890.0,0.38238]
[1757055398275,0.31114287,111900.0,111890.0,0.84374]
[1757055399478,0.31114287,111900.0,111890.0,0.02158]
[1757055399780,0.57419901,111900.0,111890.0,0.8437]
[1757055400081,0.28634,111900.0,111890.0,0.8437]
[1757055400274,0.54939614,111900.0,111890.0,0.8437]
[1757055400878,0.54939614,111900.0,111890.0,1.48535529]
[1757055400879,0.29939614,111900.0,111890.0,1.48535529]
[1757055402379,0.65153458,111910.0,111890.0,1.58050249]
[1757055402678,0.26305614,111900.0,111890.0,1.58059739]
[1757055402881,0.26305614,111900.0,111890.0,1.58049739]
[1757055403183,0.65153458,111910.0,111890.0,1.66984929]
[1757055403384,0.65153458,111910.0,111890.0,1.58059719]
[1757055403683,0.67456458,111910.0,111900.0,0.1109292]
[1757055403877,0.67456458,111910.0,111900.0,0.02158]
[1757055405579,0.67579427,111910.0,111900.0,0.02158]
[1757055406782,0.67579427,111910.0,111900.0,0.28463614]
[1757055407382,0.67579427,111910.0,111900.0,0.35776521]
[1757055409685,0.31499427,111910.0,111900.0,0.35776521]
[1757055409882,0.31499427,111910.0,111900.0,0.09470907]
[1757055410289,0.31499427,111910.0,111900.0,0.91662907]
[1757055412888,0.31499427,111910.0,111900.0,1.00597827]
[1757055413285,0.31499427,111910.0,111900.0,1.26903441]
[1757055414890,0.31499427,111910.0,111900.0,1.17968521]
[1757055415389,0.31499427,111910.0,111900.0,1.00597887]
[1757055416977,0.31499427,111910.0,111900.0,0.91662907]
[1757055417686,0.31499427,111910.0,111900.0,0.92108907]
[1757055417887,0.31622396,111910.0,111900.0,1.01043887]
[1757055418291,0.31622396,111910.0,111900.0,0.92108907]
[1757055418893,0.31622396,111910.0,111900.0,0.09916907]
[1757055419292,0.31622396,111910.0,111900.0,0.92092907]
[1757055419694,0.31622396,111910.0,111900.0,0.09916907]
[1757055419890,0.67702396,111910.0,111900.0,0.09916907]
[1757055420197,0.31622396,111910.0,111900.0,0.92092907]
[1757055421689,0.56622396,111910.0,111900.0,0.09916907]
[1757055421889,0.56622396,111910.0,111900.0,0.92088907]
[1757055422496,0.56622396,111910.0,111900.0,0.09916907]
[1757055424407,0.92702396,111910.0,111900.0,0.09916907]
[1757055427491,0.89762135,111910.0,111900.0,0.09916907]
[1757055428299,0.89762135,111910.0,111900.0,0.07758907]
[1757055430493,0.89762135,111910.0,111900.0,0.10041907]
[1757055432691,0.53682135,111910.0,111900.0,0.10041907]
[1757055434103,0.53805104,111910.0,111900.0,0.10041907]
[1757055434601,0.66519751,111910.0,111900.0,0.10041907]
[1757055434899,0.53805104,111910.0,111900.0,0.10041907]
[1757055442312,0.30439751,111910.0,111900.0,0.10041907]
[1757055442511,0.53805104,111910.0,111900.0,0.10041907]
[1757055443396,0.89885104,111910.0,111900.0,0.10041907]
[1757055443598,0.53805104,111910.0,111900.0,0.10041907]
[1757055450233,0.89885104,111910.0,111900.0,0.10041907]
[1757055450731,0.89885104,111910.0,111900.0,0.07758907]
[1757055451632,0.89885104,111910.0,111900.0,0.09922907]
[1757055452437,0.53805104,111910.0,111900.0,0.09922907]
[1757055452634,0.89885104,111910.0,111900.0,0.09922907]
[1757055453027,0.66519751,111910.0,111900.0,0.07758907]
[1757055453337,0.89885104,111910.0,111900.0,0.07758907]
[1757055455431,0.89885104,111910.0,111900.0,0.09922907]
[1757055455632,0.64885104,111910.0,111900.0,0.00446]
[1757055455823,0.28805104,111910.0,111900.0,0.0261]
[1757055457535,0.28805104,111910.0,111900.0,0.09622001]
[1757055460544,0.05439751,111910.0,111900.0,0.09622001]
[1757055460731,0.28805104,111910.0,111900.0,0.09622001]
[1757055462939,0.03965751,111910.0,111900.0,0.43556981]
[1757055463242,0.03965751,111910.0,111900.0,1.25644981]
[1757055463439,0.05245751,111910.0,111900.0,1.27941981]
[1757055464440,0.05245751,111910.0,111900.0,1.16710001]
[1757055471747,0.05245751,111910.0,111900.0,1.16694001]
[1757055471942,0.28611104,111910.0,111900.0,1.16694001]
[1757055472148,0.28611104,111910.0,111900.0,0.91694001]
[1757055475251,0.28611104,111910.0,111900.0,0.09622001]
[1757055486947,0.05245751,111910.0,111900.0,0.09622001]
[1757055487351,0.28611104,111910.0,111900.0,0.09622001]
[1757055487554,0.31527664,111910.0,111900.0,0.09622001]
[1757055500083,0.05245751,111910.0,111900.0,0.09622001]
[1757055500282,0.31527664,111910.0,111900.0,0.20853981]
[1757055501578,0.31527664,111910.0,111900.0,0.56933981]
[1757055502680,0.31527664,111910.0,111900.0,0.20853981]
[1757055503784,0.31527664,111910.0,111900.0,0.56933981]
[1757055504583,0.31527664,111910.0,111900.0,0.20853981]
[1757055509388,0.31527664,111910.0,111900.0,1.02877981]
[1757055509990,0.31527664,111910.0,111900.0,0.20853981]
[1757055510190,0.31527664,111910.0,111900.0,1.02869981]
[1757055510788,0.31527664,111910.0,111900.0,0.91638001]
[1757055514492,0.31527664,111910.0,111900.0,0.09622001]
[1757055514790,0.31527664,111910.0,111900.0,0.91634001]
[1757055530300,0.67607664,111910.0,111900.0,0.89446001]
[1757055530692,0.67607664,111910.0,111900.0,0.91775001]
[1757055540208,0.31527664,111910.0,111900.0,0.91775001]
[1757055540410,0.67607664,111910.0,111900.0,0.91775001]
[1757055541408,0.31527664,111910.0,111900.0,0.91775001]
[1757055541601,0.67607664,111910.0,111900.0,0.91775001]
[1757055542511,0.31527664,111910.0,111900.0,0.91775001]
[1757055544014,0.67607664,111910.0,111900.0,0.91775001]
[1757055547110,0.67607664,111910.0,111900.0,0.09787001]
[1757055547302,0.67607664,111910.0,111900.0,0.07458001]
[1757055548011,0.67607664,111910.0,111900.0,0.09787001]
[1757055549018,0.05245751,111910.0,111900.0,1.32964935]
[1757055549209,0.31527664,111910.0,111900.0,1.32964935]
[1757055549405,0.05245751,111910.0,111900.0,1.06683022]
[1757055550809,0.05245751,111910.0,111900.0,1.15618002]
[1757055551513,0.01831751,111910.0,111900.0,1.39943654]
[1757055551815,0.01831751,111910.0,111900.0,1.51175634]
[1757055553013,0.01831751,111910.0,111900.0,1.39943654]
[1757055553614,0.01831751,111910.0,111900.0,2.21879654]
[1757055554412,0.01831751,111910.0,111900.0,2.33111634]
[1757055554815,0.03117751,111910.0,111900.0,1.83785982]
[1757055555015,0.01831751,111910.0,111900.0,1.83785982]
[1757055555215,0.01831751,111910.0,111900.0,1.84754982]
[1757055555420,0.01831751,111910.0,111900.0,2.08111634]
[1757055556817,0.01831751,111910.0,111900.0,1.96879654]
[1757055557218,0.01831751,111910.0,111900.0,2.08111634]
[1757055557613,0.01831751,111910.0,111900.0,1.96879654]
[1757055558017,0.01831751,111910.0,111900.0,2.08111634]
[1757055558918,0.01831751,111910.0,111900.0,1.84754982]
[1757055560214,0.01831751,111910.0,111900.0,0.92915002]
[1757055560415,0.05374751,111910.0,111900.0,1.74835002]
[1757055563019,0.01831751,111910.0,111900.0,2.08095544]
[1757055563223,0.01831751,111910.0,111900.0,1.96863564]
[1757055563419,0.01831751,111910.0,111900.0,1.73506912]
[1757055563620,0.01831751,111910.0,111900.0,1.96863564]
[1757055563918,0.01831751,111910.0,111900.0,2.08095544]
[1757055564928,0.01831751,111910.0,111900.0,2.08295544]
[1757055567125,0.01831751,111910.0,111900.0,1.97063564]
[1757055568422,0.01831751,111910.0,111900.0,2.08295544]
[1757055569319,0.01831751,111910.0,111900.0,1.97063564]
[1757055570024,0.01831751,111910.0,111900.0,2.08295544]
[1757055571924,0.01831751,111910.0,111900.0,2.33295544]
[1757055572126,0.01831751,111910.0,111900.0,2.22063564]
[1757055573128,0.01831751,111910.0,111900.0,2.22163564]
[1757055573328,0.01831751,111910.0,111900.0,2.33351981]
[1757055576330,0.26899652,111940.0,111930.0,0.02252]
[1757055576526,0.26899652,111940.0,111930.0,1.20212]
[1757055577328,0.03543,111940.0,111930.0,1.20212]
[1757055577534,0.26899652,111940.0,111930.0,1.20658]
[1757055577727,0.03543,111940.0,111930.0,1.20658]
[1757055577929,0.27223,111940.0,111930.0,1.3016947]
[1757055578123,0.27223,111940.0,111930.0,1.21237]
[1757055578327,0.28543,111940.0,111930.0,1.20658]
[1757055578930,0.28543,111940.0,111930.0,0.76878]
[1757055579134,0.28543,111940.0,111930.0,0.69878]
[1757055579333,0.28543,111940.0,111930.0,1.2075]
[1757055579534,0.28543,111940.0,111930.0,1.20660016]
[1757055579734,0.0132,111950.0,111930.0,1.21439016]
[1757055579931,0.02223,111940.0,111930.0,1.21439016]
[1757055580634,0.03543,111940.0,111930.0,1.30371486]
[1757055581233,0.02223,111950.0,111940.0,0.03221]
[1757055581427,0.02223,111950.0,111940.0,0.02262016]
[1757055581627,0.03543,111950.0,111940.0,0.84126016]
[1757055581832,0.03543,111950.0,111940.0,0.93057686]
[1757055582532,0.03543,111950.0,111940.0,0.93053686]
[1757055582728,0.03543,111950.0,111940.0,0.93153686]
[1757055583148,0.02223,111950.0,111940.0,0.94122686]
[1757055583330,0.03543,111960.0,111950.0,0.1118288]
[1757055583532,0.02223,111960.0,111950.0,0.47903896]
[1757055585741,0.02223,111960.0,111950.0,0.48003896]
[1757055585942,0.05495027,111970.0,111960.0,0.1110508]
[1757055586142,0.28851679,111970.0,111960.0,0.84037016]
[1757055586930,0.53851679,111970.0,111960.0,0.84033016]
[1757055589065,0.53851679,111970.0,111960.0,0.02185016]
[1757055590550,0.53746679,111970.0,111960.0,0.02185016]
[1757055590942,0.53746679,111970.0,111960.0,0.09176828]
[1757055591143,0.53746679,111970.0,111960.0,0.02185016]
[1757055592448,0.89826679,111970.0,111960.0,0.02185016]
[1757055595452,0.89826679,111970.0,111960.0,0.09385427]
[1757055596651,0.66470027,111970.0,111960.0,0.09385427]
[1757055596845,0.89826679,111970.0,111960.0,0.09385427]
[1757055597751,0.64826679,111970.0,111960.0,0.09385427]
[1757055598448,0.41470027,111970.0,111960.0,0.09385427]
[1757055598650,0.64826679,111970.0,111960.0,0.09385427]
[1757055599251,0.64826679,111970.0,111960.0,0.07210427]
[1757055600562,0.64826679,111970.0,111960.0,0.00010016]
[1757055600746,0.64826679,111970.0,111960.0,0.00456016]
[1757055601148,0.41470027,111970.0,111960.0,0.02631016]
[1757055601349,0.04070027,111970.0,111960.0,1.43048778]
[1757055601953,0.04070027,111970.0,111960.0,1.79128778]
[1757055602148,0.04070027,111970.0,111960.0,1.55772126]
[1757055604152,0.04070027,111970.0,111960.0,1.62784655]
[1757055604757,0.04070027,111970.0,111960.0,1.53854545]
[1757055605460,0.04070027,111970.0,111960.0,1.86141307]
[1757055606054,0.01757027,111970.0,111960.0,1.86141307]
[1757055606260,0.01757027,111970.0,111960.0,2.24141307]
[1757055606458,0.01757027,111970.0,111960.0,1.86141307]
[1757055606662,0.01420007,111970.0,111960.0,2.33072669]
[1757055608659,0.01420007,111970.0,111960.0,2.33372669]
[1757055608858,0.00720007,111970.0,111960.0,2.33372669]
[1757055609160,0.0001,111980.0,111970.0,0.1110431]
[1757055609361,0.0001,111990.0,111970.0,0.70550978]
[1757055609553,0.02323,111990.0,111980.0,1.10190253]
[1757055609753,0.02313,111990.0,111980.0,1.10200269]
[1757055610061,0.28552253,111990.0,111980.0,1.10200269]
[1757055610361,0.02313,111990.0,111980.0,1.46280269]
[1757055611557,0.02313,111990.0,111980.0,1.55208809]
[1757055611757,0.03683,111990.0,111980.0,1.46280269]
[1757055612157,0.03683,111990.0,111980.0,1.55208809]
[1757055612360,0.03683,111990.0,111980.0,1.55308809]
[1757055612856,0.29922253,111990.0,111980.0,1.55308809]
[1757055613056,0.29922253,111990.0,111980.0,0.64604269]
[1757055613256,0.03683,111990.0,111980.0,0.02285016]
[1757055613457,0.29922253,111990.0,111980.0,0.02285016]
[1757055613958,0.29922253,111990.0,111980.0,0.84049016]
[1757055614159,0.29922253,111990.0,111980.0,0.02285016]
[1757055614358,0.66002253,111990.0,111980.0,0.84045016]
[1757055614560,0.29922253,111990.0,111980.0,0.84045016]
[1757055616061,0.03683,111990.0,111980.0,0.84045016]
[1757055616263,0.29922253,111990.0,111980.0,0.84491016]
[1757055622266,0.29922253,111990.0,111980.0,0.02731016]
[1757055622464,0.29922253,111990.0,111980.0,0.84471016]
[1757055622667,1.17241506,111990.0,111980.0,0.02731016]
[1757055622968,0.29922253,111990.0,111980.0,0.02731016]
[1757055625768,0.29922253,111990.0,111980.0,0.73978799]
[1757055628485,0.29922253,111990.0,111980.0,0.75618452]
[1757055628784,0.29922253,111990.0,111980.0,0.65050269]
[1757055629586,0.29922253,111990.0,111980.0,0.66625135]
[1757055629885,0.29922253,111990.0,111980.0,0.75553655]
[1757055630286,0.29922253,111990.0,111980.0,0.65050269]
[1757055630588,0.29922253,111990.0,111980.0,1.20535016]
[1757055631087,0.29922253,111990.0,111980.0,1.29463546]
[1757055632188,0.29922253,111990.0,111980.0,1.20535016]
[1757055633187,0.29922253,111990.0,111980.0,1.29463546]
[1757055633388,0.29922253,111990.0,111980.0,1.20535016]
[1757055634186,0.29922253,111990.0,111980.0,0.84455016]
[1757055634584,0.29922253,111990.0,111980.0,1.29463546]
[1757055634893,0.29922253,111990.0,111980.0,1.20535016]
[1757055635189,0.03683,111990.0,111980.0,1.20535016]
[1757055635382,0.29922253,111990.0,111980.0,1.29463546]
[1757055635589,0.29922253,111990.0,111980.0,0.93383546]
[1757055635785,0.29922253,111990.0,111980.0,1.29463546]
[1757055635992,0.29922253,111990.0,111980.0,0.84455016]
[1757055636190,0.29922253,111990.0,111980.0,1.20535016]
[1757055636593,0.29922253,111990.0,111980.0,1.29463546]
[1757055636788,0.29922253,111990.0,111980.0,0.93383546]
[1757055636991,0.29922253,111990.0,111980.0,1.29463546]
[1757055637192,0.29922253,111990.0,111980.0,0.93383546]
[1757055637493,0.29922253,111990.0,111980.0,1.29463546]
[1757055637693,0.29922253,111990.0,111980.0,0.84455016]
[1757055638094,0.29922253,111990.0,111980.0,1.20535016]
[1757055638289,0.29922253,111990.0,111980.0,0.84455016]
[1757055638989,0.81161506,111990.0,111980.0,0.02731016]
[1757055639289,0.81161506,111990.0,111980.0,0.02801016]
[1757055639489,1.17241506,111990.0,111980.0,0.02801016]
[1757055639892,1.98941506,111990.0,111980.0,0.00556016]
[1757055640196,0.03471,111980.0,111970.0,0.0001]
[1757055640390,0.01359,111970.0,111960.0,0.07022529]
[1757055640591,0.03471,111960.0,111950.0,0.38335]
[1757055640787,0.03471,111960.0,111950.0,0.38325]
[1757055641096,0.29710253,111960.0,111950.0,0.38325]
[1757055643805,0.29710253,111960.0,111950.0,0.38725]
[1757055644191,0.29710253,111960.0,111950.0,0.02645]
[1757055644396,0.80949506,111960.0,111950.0,0.004]
[1757055645104,1.17029506,111960.0,111950.0,0.004]
[1757055646606,1.17029506,111960.0,111940.0,0.0001]